bitfinex-derivatives/quotes_BTCF0:USTF0_20241227
["timestamp","ask_amount","ask_price","bid_price","bid_amount"]
[1735301163978,0.004,96915.0,96913.0,0.051651]
[1735301164476,0.013,96915.0,96913.0,0.051651]
[1735301164883,0.0348,96919.0,96906.0,0.0366]
[1735301165182,0.0348,96919.0,96913.0,0.051652]
[1735301165183,0.004,96914.0,96913.0,0.051652]
[1735301166485,0.002,96915.0,96913.0,0.051652]
[1735301166782,0.002,96914.0,96913.0,0.051652]
[1735301167579,0.007,96914.0,96913.0,0.051652]
[1735301170090,0.007,96914.0,96913.0,1.551652]
[1735301174885,0.04304812,96985.0,96936.0,0.051639]
[1735301175087,0.051633,96948.0,96936.0,0.051639]
[1735301175282,0.051633,96948.0,96927.0,0.10203775]
[1735301175585,0.051633,96948.0,96946.0,0.051634]
[1735301175812,0.051636,96942.0,96939.0,0.051637]
[1735301176288,0.0367,96941.0,96939.0,0.051637]
[1735301176593,0.051638,96938.0,96936.0,1.50152]
[1735301176784,0.05164,96935.0,96932.0,0.051641]
[1735301177488,0.009,96937.0,96920.0,0.10203775]
[1735301177685,0.009,96937.0,96935.0,0.051639]
[1735301178389,0.009,96937.0,96936.0,1.5]
[1735301178983,0.0367,96941.0,96939.0,0.051638]
[1735301179287,0.0377,96941.0,96939.0,0.057638]
[1735301180590,0.0367,96941.0,96939.0,0.051638]
[1735301181184,0.0387,96941.0,96939.0,0.051638]
[1735301182191,0.0387,96941.0,96939.0,0.06202256]
[1735301183097,0.051639,96937.0,96936.0,0.00052]
[1735301183289,0.051639,96937.0,96931.0,0.051642]
[1735301183290,0.051641,96933.0,96931.0,0.051642]
[1735301184593,0.051641,96933.0,96931.0,0.06197397]
[1735301187697,0.0387,96941.0,96931.0,0.06197397]
[1735301187698,0.051637,96940.0,96931.0,0.01033197]
[1735301187893,0.051637,96940.0,96930.0,0.10203775]
[1735301188197,0.051637,96940.0,96925.0,0.18358598]
[1735301188397,0.051638,96939.0,96934.0,0.05164]
[1735301188599,0.051638,96939.0,96935.0,0.051639]
[1735301188899,0.051638,96939.0,96930.0,0.18358598]
[1735301189088,0.051638,96939.0,96936.0,1.551639]
[1735301190395,0.0387,96941.0,96940.0,0.051637]
[1735301191493,0.002,96941.0,96940.0,1.551637]
[1735301191688,0.0698,96952.0,96940.0,1.5]
[1735301191889,0.0698,96952.0,96951.0,0.051631]
[1735301192496,0.0355,96956.0,96940.0,1.78562373]
[1735301192690,0.0355,96956.0,96955.0,0.051629]
[1735301193091,0.15427123,96967.0,96966.0,0.051623]
[1735301193295,0.15427123,96967.0,96966.0,1.551623]
[1735301194487,0.00096001,96985.0,96966.0,1.5]
[1735301194692,0.051609,96992.0,96982.0,0.051615]
[1735301195007,0.034,96993.0,96982.0,0.051615]
[1735301195192,0.051612,96989.0,96982.0,0.051615]
[1735301196204,0.051612,96989.0,96982.0,0.06210576]
[1735301196894,0.051612,96989.0,96983.0,0.051614]
[1735301200201,0.053612,96989.0,96983.0,0.051614]
[1735301201303,0.053612,96989.0,96984.0,0.051614]
[1735301202802,0.058612,96989.0,96984.0,0.051614]
[1735301204399,0.056612,96989.0,96984.0,0.051614]
[1735301204596,0.058612,96989.0,96984.0,0.051614]
[1735301206508,0.058612,96989.0,96966.0,0.18358598]
[1735301206509,0.051613,96985.0,96975.0,0.051618]
[1735301206703,0.10203775,96985.0,96971.0,1.50052]
[1735301206906,0.10203775,96985.0,96967.0,0.051622]
[1735301207207,0.00171309,96976.0,96967.0,0.051622]
[1735301207404,0.051619,96975.0,96968.0,1.551622]
[1735301207604,0.051619,96974.0,96968.0,1.551622]
[1735301207804,0.051619,96974.0,96971.0,0.001]
[1735301207997,0.0373,96973.0,96971.0,0.001]
[1735301208195,0.00171309,96972.0,96971.0,0.001]
[1735301208398,0.00171309,96972.0,96968.0,1.552182]
[1735301208399,0.08933309,96972.0,96968.0,1.552182]
[1735301208595,0.08933309,96972.0,96968.0,1.551622]
[1735301208910,0.08933309,96972.0,96968.0,1.553622]
[1735301209311,0.00171309,96970.0,96968.0,1.553622]
[1735301210206,0.08762,96972.0,96968.0,1.553622]
[1735301210399,0.00171309,96969.0,96968.0,1.553622]
[1735301210803,0.00171309,96969.0,96968.0,1.554622]
[1735301211310,0.05333509,96969.0,96968.0,1.503]
[1735301211511,0.00171309,96969.0,96968.0,1.554622]
[1735301212408,0.00171309,96969.0,96968.0,1.552622]
[1735301212603,0.00171309,96969.0,96968.0,1.554622]
[1735301215501,0.00171309,96969.0,96968.0,1.553622]
[1735301215711,0.00171309,96969.0,96968.0,1.554622]
[1735301217416,0.1,97000.0,96998.0,0.051606]
[1735301217908,0.1,97000.0,96999.0,0.0369]
[1735301218107,0.1,97000.0,96999.0,1.5369]
[1735301218515,0.105,97000.0,96999.0,1.5369]
[1735301218722,0.114,97000.0,96999.0,1.5369]
[1735301219417,0.114,97000.0,96999.0,1.5379]
[1735301221215,0.114,97000.0,96999.0,1.54844952]
[1735301221604,0.112,97000.0,96999.0,1.54844952]
[1735301222012,0.11,97000.0,96999.0,1.54844952]
[1735301223117,0.104,97000.0,96999.0,1.54744952]
[1735301224016,0.101,97000.0,96999.0,1.7910741]
[1735301224209,0.0342,97013.0,96999.0,1.7910741]
[1735301224715,0.0342,97013.0,97012.0,0.051599]
[1735301227018,0.0342,97013.0,97000.0,0.24362458]
[1735301227217,0.051605,97001.0,97000.0,0.24362458]
[1735301227404,0.051605,97001.0,97000.0,0.07352458]
[1735301227604,0.051608,96994.0,96993.0,0.3045829]
[1735301227811,0.051608,96994.0,96993.0,0.2112829]
[1735301228027,0.051612,96987.0,96979.0,1.5]
[1735301228215,0.051616,96980.0,96979.0,1.50052]
[1735301228411,0.051616,96980.0,96971.0,0.05162]
[1735301228921,0.051616,96980.0,96972.0,1.5]
[1735301229114,0.051616,96980.0,96972.0,1.50052]
[1735301229509,0.051616,96980.0,96972.0,1.51103963]
[1735301229711,0.12326878,96985.0,96983.0,0.051614]
[1735301229918,0.12326878,96985.0,96984.0,0.0344]
[1735301230507,0.12326878,96985.0,96984.0,1.5344]
[1735301230710,0.15427123,96992.0,96991.0,0.05161]
[1735301230916,0.001,96994.0,96993.0,0.051609]
[1735301231309,0.001,96994.0,96993.0,1.551609]
[1735301231513,0.001,97001.0,96999.0,0.051606]
[1735301232608,0.15402812,97023.0,97021.0,0.051594]
[1735301233719,0.051589,97031.0,97024.0,0.051592]
[1735301234022,0.05159,97030.0,97024.0,0.051592]
[1735301234230,0.05159,97029.0,97024.0,0.051592]
[1735301236226,0.11230189,97040.0,97024.0,0.051592]
[1735301236415,0.11230189,97040.0,97014.0,0.01052381]
[1735301236610,0.051592,97025.0,97019.0,0.051595]
[1735301236918,0.051592,97025.0,97020.0,1.5]
[1735301237320,0.051596,97018.0,97009.0,0.0516]
[1735301237520,0.051597,97016.0,97000.0,0.01038985]
[1735301237714,0.051597,97016.0,97014.0,0.051598]
[1735301237918,0.051593,97024.0,97021.0,0.051594]
[1735301238617,0.10203775,97031.0,97001.0,1.5]
[1735301239025,0.051597,97016.0,97009.0,0.0516]
[1735301239918,0.051593,97024.0,97016.0,0.051596]
[1735301240119,0.051594,97022.0,97003.0,0.051603]
[1735301240429,0.11103775,97030.0,97001.0,1.51096016]
[1735301240626,0.11103775,97030.0,97013.0,0.051598]
[1735301240627,0.051591,97028.0,97013.0,0.051598]
[1735301240828,0.002,97016.0,97013.0,0.051598]
[1735301241219,0.053597,97016.0,97013.0,0.051598]
[1735301241623,0.002,97016.0,97005.0,0.051602]
[1735301241832,0.051599,97012.0,97007.0,0.051601]
[1735301242222,0.051599,97012.0,97009.0,0.0516]
[1735301244033,0.004,97012.0,97001.0,1.51040016]
[1735301244235,0.004,97012.0,97010.0,0.0516]
[1735301245729,0.056599,97012.0,97010.0,0.0516]
[1735301246128,0.005,97012.0,97001.0,1.51040016]
[1735301246433,0.051601,97009.0,97004.0,0.051603]
[1735301247229,0.051602,97006.0,97004.0,0.051603]
[1735301247427,0.051604,97002.0,97001.0,1.50056]
[1735301247627,0.051604,97002.0,97001.0,1.5]
[1735301250130,0.052604,97002.0,97001.0,1.5]
[1735301250835,0.053604,97002.0,97001.0,1.5]
[1735301251041,0.052604,97002.0,97001.0,1.5]
[1735301251334,0.053604,97002.0,97001.0,1.5]
[1735301251538,0.052604,97002.0,97001.0,1.5]
[1735301251729,0.053604,97002.0,97001.0,1.5]
[1735301254634,0.002,97002.0,97001.0,1.5]
[1735301254838,0.001,97002.0,97001.0,1.5]
[1735301255043,0.001,97002.0,97001.0,1.551605]
[1735301256939,0.09257684,97002.0,97001.0,1.551605]
[1735301257141,0.09357684,97002.0,97001.0,1.551605]
[1735301258333,0.001,97002.0,97001.0,1.551605]
[1735301259732,0.09357684,97002.0,97001.0,1.551605]
[1735301261142,0.001,97002.0,97001.0,1.551605]
[1735301263343,0.051601,97008.0,97001.0,1.5]
[1735301263643,0.051602,97006.0,97003.0,0.051603]
[1735301264140,0.051602,97006.0,97005.0,1.5]
[1735301266148,0.002,97006.0,97005.0,1.5]
[1735301266439,0.003,97006.0,97005.0,1.5]
[1735301266646,0.001,97006.0,97005.0,1.5]
[1735301266842,0.004,97006.0,97005.0,1.5]
[1735301269343,0.004,97006.0,97005.0,1.5348]
[1735301271147,0.15402812,97019.0,97005.0,1.5348]
[1735301271334,0.15402812,97019.0,97018.0,0.051596]
[1735301271737,0.18483375,97028.0,97018.0,0.051596]
[1735301271738,0.18483375,97028.0,97018.0,1.551596]
[1735301271947,0.04087896,97028.0,97027.0,0.051591]
[1735301272348,0.051584,97041.0,97031.0,0.051589]
[1735301272953,0.051584,97040.0,97031.0,0.051589]
[1735301273146,0.051584,97040.0,97031.0,0.061885]
[1735301273850,0.0763,97054.0,97031.0,0.061885]
[1735301273851,0.00754652,97032.0,97031.0,0.062885]
[1735301274443,0.01454652,97032.0,97031.0,0.063885]
[1735301275156,0.01454652,97032.0,97031.0,0.002]
[1735301276445,0.08954652,97032.0,97031.0,0.002]
[1735301282061,0.01454652,97032.0,97031.0,0.002]
[1735301282245,0.04984652,97032.0,97031.0,0.002]
[1735301285355,0.01454652,97032.0,97031.0,0.053589]
[1735301285749,0.01454652,97032.0,97031.0,1.553589]
[1735301286958,0.0347,97057.0,97031.0,1.502]
[1735301287159,0.051574,97059.0,97052.0,0.051578]
[1735301287462,0.11251617,97070.0,97053.0,0.051577]
[1735301287761,0.051572,97063.0,97053.0,0.051577]
[1735301288261,0.051567,97072.0,97056.0,0.051575]
[1735301288467,0.051567,97072.0,97058.0,0.051574]
[1735301288764,0.051567,97072.0,97062.0,0.051572]
[1735301290057,0.21845097,97079.0,97060.0,0.10203775]
[1735301290253,0.21757096,97079.0,97069.0,0.051568]
[1735301290560,0.00154574,97079.0,97069.0,0.051568]
[1735301291071,0.05310974,97079.0,97069.0,0.051568]
[1735301291361,0.05310974,97079.0,97070.0,1.5]
[1735301292066,0.09235113,97075.0,97070.0,1.5]
[1735301293069,0.17624459,97079.0,97070.0,1.5]
[1735301293070,0.14391513,97078.0,97070.0,1.5]
[1735301294162,0.051564,97078.0,97070.0,1.501]
[1735301294562,0.051564,97078.0,97070.0,1.5]
[1735301294867,0.09389687,97079.0,97071.0,0.0358]
[1735301295655,0.00154574,97079.0,97071.0,0.0358]
[1735301296264,0.00154574,97079.0,97072.0,1.5]
[1735301296867,0.00154574,97079.0,97071.0,0.0368]
[1735301299476,0.051566,97073.0,97071.0,0.001]
[1735301300161,0.00154574,97079.0,97071.0,0.001]
[1735301300371,0.05310874,97079.0,97071.0,0.001]
[1735301300561,0.09235113,97078.0,97071.0,0.001]
[1735301300761,0.051564,97077.0,97071.0,0.001]
[1735301301071,0.051564,97077.0,97050.0,0.10203775]
[1735301301072,0.39235113,97078.0,97014.0,0.1826]
[1735301301363,0.39235113,97078.0,97025.0,0.1075]
[1735301301364,0.051582,97044.0,97025.0,0.1075]
[1735301301571,0.051582,97044.0,97043.0,1.5]
[1735301302070,0.051582,97044.0,97031.0,0.01020569]
[1735301302666,0.051582,97044.0,97032.0,1.5]
[1735301305466,0.051582,97044.0,97043.0,0.002]
[1735301307071,0.17471685,97044.0,97043.0,0.002]
[1735301307269,0.051588,97033.0,97032.0,1.5]
[1735301308960,0.051588,97033.0,97032.0,1.502]
[1735301309874,0.051588,97033.0,97032.0,1.503]
[1735301310470,0.09230294,97036.0,97032.0,1.503]
[1735301310967,0.09230294,97037.0,97032.0,1.503]
[1735301311265,0.09230294,97037.0,97032.0,1.502]
[1735301311671,0.051588,97033.0,97032.0,1.502]
[1735301311868,0.09230294,97037.0,97032.0,1.502]
[1735301312072,0.09230294,97037.0,97033.0,0.0367]
[1735301312377,0.09230294,97045.0,97033.0,0.0725]
[1735301312569,0.09230294,97045.0,97034.0,1.5]
[1735301312973,0.09230294,97045.0,97035.0,0.0353]
[1735301313574,0.051584,97041.0,97035.0,0.0353]
[1735301315676,0.051585,97039.0,97035.0,0.0353]
[1735301316278,0.051585,97038.0,97035.0,0.0353]
[1735301317275,0.051586,97036.0,97034.0,1.50052]
[1735301317565,0.05159,97030.0,97025.0,0.051592]
[1735301317778,0.05159,97030.0,97025.0,0.06168092]
[1735301317975,0.05159,97030.0,97026.0,1.5]
[1735301318374,0.10203775,97035.0,97031.0,0.051589]
[1735301318680,0.051589,97031.0,97026.0,1.50052]
[1735301318864,0.051589,97031.0,97026.0,1.5]
[1735301319070,0.05159,97029.0,97026.0,1.503]
[1735301319272,0.051591,97028.0,97026.0,1.503]
[1735301320877,0.051591,97028.0,97026.0,0.003]
[1735301321076,0.051591,97028.0,97026.0,0.004]
[1735301321679,0.051591,97028.0,97026.0,0.001]
[1735301321876,0.051596,97018.0,97013.0,1.5]
[1735301322378,0.051596,97017.0,97013.0,1.5]
[1735301323883,0.29644671,97023.0,97013.0,1.5]
[1735301324179,0.051599,97012.0,96990.0,0.0367]
[1735301324380,0.051599,97012.0,96993.0,0.01055605]
[1735301324584,0.051599,97012.0,97011.0,1.50154603]
[1735301324970,0.051599,97012.0,97011.0,0.00154603]
[1735301325681,0.051599,97012.0,97011.0,0.00554603]
[1735301326077,0.051599,97012.0,97011.0,0.00754603]
[1735301328479,0.051599,97012.0,97011.0,1.50754603]
[1735301330882,0.051599,97012.0,97011.0,0.00754603]
[1735301332080,0.051599,97012.0,97011.0,0.006]
[1735301337487,0.17490717,97012.0,97011.0,0.006]
[1735301339785,0.051599,97012.0,97011.0,0.006]
[1735301342293,0.17490717,97012.0,97011.0,0.006]
[1735301345497,0.051599,97012.0,97011.0,0.006]
[1735301349794,0.2053531,97012.0,97011.0,0.006]
[1735301350696,0.051607,96997.0,96993.0,0.18377541]
[1735301350891,0.051608,96994.0,96993.0,0.18377541]
[1735301351094,0.051611,96989.0,96988.0,0.24388791]
[1735301351489,0.10203775,97000.0,96990.0,0.05161]
[1735301351689,0.10203775,97000.0,96991.0,0.0352]
[1735301351898,0.051606,96998.0,96993.0,0.002]
[1735301352700,0.051608,96996.0,96993.0,0.002]
[1735301353292,0.051608,96996.0,96993.0,0.006]
[1735301353598,0.051608,96995.0,96993.0,0.006]
[1735301353899,0.051608,96995.0,96993.0,0.004]
[1735301354493,0.051608,96995.0,96994.0,0.01132787]
[1735301354702,0.051608,96995.0,96993.0,0.006]
[1735301355197,0.051613,96985.0,96984.0,0.18419469]
[1735301355587,0.051613,96985.0,96969.0,0.0697]
[1735301355588,0.051617,96978.0,96976.0,0.18419469]
[1735301357103,0.051617,96978.0,96969.0,0.0697]
[1735301357490,0.052617,96978.0,96977.0,0.009]
[1735301357800,0.06275823,96978.0,96977.0,0.009]
[1735301358005,0.051625,96963.0,96962.0,0.1857415]
[1735301358506,0.051625,96963.0,96962.0,0.00154681]
[1735301358709,0.10203775,96972.0,96954.0,0.18419469]
[1735301358902,0.051629,96955.0,96954.0,0.18419469]
[1735301359510,0.051629,96955.0,96953.0,0.0705]
[1735301360800,0.051629,96955.0,96953.0,0.002]
[1735301361903,0.14426735,96955.0,96953.0,0.002]
[1735301362505,0.14526735,96955.0,96953.0,0.005]
[1735301363209,0.052629,96955.0,96953.0,0.005]
[1735301364608,0.14526735,96955.0,96953.0,0.005]
[1735301366413,0.052629,96955.0,96953.0,0.005]
[1735301368318,0.052629,96955.0,96954.0,1.5]
[1735301368613,0.09263835,96958.0,96955.0,0.051629]
[1735301368614,0.08066734,96958.0,96955.0,0.051629]
[1735301368922,0.051625,96963.0,96955.0,0.051629]
[1735301369107,0.051625,96963.0,96956.0,0.0741]
[1735301369808,0.1235178,96968.0,96956.0,0.125728]
[1735301370010,0.001,96963.0,96956.0,0.125728]
[1735301370601,0.001,96963.0,96956.0,0.128728]
[1735301371008,0.001,96963.0,96956.0,0.130728]
[1735301371713,0.001,96963.0,96957.0,0.0368]
[1735301371906,0.001,96963.0,96957.0,0.088428]
[1735301372609,0.001,96963.0,96961.0,0.051626]
[1735301373315,0.051618,96977.0,96966.0,0.051623]
[1735301373525,0.051618,96977.0,96957.0,0.0408]
[1735301373715,0.051618,96977.0,96967.0,1.551623]
[1735301376316,0.00154714,96983.0,96967.0,1.5]
[1735301376911,0.00154714,96983.0,96972.0,0.05162]
[1735301377221,0.051615,96982.0,96972.0,0.05162]
[1735301378513,0.052615,96982.0,96972.0,0.05162]
[1735301378715,0.15465275,96982.0,96972.0,0.05162]
[1735301379818,0.1235178,96980.0,96972.0,0.05162]
[1735301381116,0.1235178,96978.0,96972.0,0.05162]
[1735301382513,0.1235178,96977.0,96973.0,1.5]
[1735301383915,0.05162,96972.0,96967.0,0.01029547]
[1735301384221,0.05162,96972.0,96964.0,0.051624]
[1735301384406,0.05162,96972.0,96965.0,1.5]
[1735301385014,0.051621,96970.0,96965.0,1.5]
[1735301385217,0.1751388,96970.0,96965.0,1.5]
[1735301385817,0.051623,96966.0,96965.0,1.5]
[1735301386119,0.051628,96957.0,96956.0,0.0741]
[1735301386507,0.051628,96957.0,96956.0,1.5741]
[1735301387017,0.051628,96957.0,96956.0,1.58447555]
[1735301387221,0.052628,96957.0,96956.0,1.58847555]
[1735301387520,0.052628,96957.0,96956.0,1.59047555]
[1735301390513,0.001,96957.0,96956.0,1.59047555]
[1735301394120,0.1235178,96961.0,96956.0,1.90182057]
[1735301394331,0.051615,96982.0,96960.0,0.051627]
[1735301394332,0.1235178,96962.0,96960.0,0.051627]
[1735301394519,0.1235178,96962.0,96961.0,0.04814502]
[1735301394719,0.1235178,96962.0,96961.0,1.54814502]
[1735301395324,0.1235178,96962.0,96961.0,1.54811307]
[1735301395528,0.1235178,96962.0,96961.0,1.51131307]
[1735301395826,0.20602025,96968.0,96961.0,1.51131307]
[1735301396032,0.051623,96968.0,96962.0,0.01131307]
[1735301396328,0.051623,96968.0,96965.0,0.051624]
[1735301396528,0.051623,96968.0,96966.0,0.01131634]
[1735301396728,0.051623,96968.0,96966.0,0.051623]
[1735301397121,0.1751408,96968.0,96966.0,0.051623]
[1735301399422,0.1235178,96968.0,96966.0,0.051623]
[1735301399728,0.15363275,97020.0,96973.0,0.05162]
[1735301399729,0.15439725,96974.0,96973.0,0.05162]
[1735301400230,0.15439725,96974.0,96973.0,1.55162]
[1735301400820,0.12371314,96975.0,96973.0,1.5]
[1735301401030,0.12371314,96975.0,96974.0,0.051619]
[1735301403633,0.051616,96980.0,96974.0,0.051619]
[1735301404021,0.003,96975.0,96974.0,0.051619]
[1735301404231,0.005,96975.0,96974.0,0.051619]
[1735301404936,0.003,96975.0,96974.0,0.051619]
[1735301405622,0.21189326,96980.0,96974.0,0.051619]
[1735301405830,0.21101325,96980.0,96974.0,0.06297489]
[1735301406029,0.21101325,96980.0,96975.0,0.01135589]
[1735301406229,0.21101325,96980.0,96976.0,0.01135589]
[1735301406429,0.002,96975.0,96974.0,0.056619]
[1735301406733,0.002,96975.0,96974.0,0.06797994]
[1735301407129,0.20793325,96980.0,96974.0,0.06797994]
[1735301407130,0.20793325,96980.0,96974.0,0.056619]
[1735301407427,0.20701325,96980.0,96975.0,0.002]
[1735301407735,0.051618,96977.0,96975.0,0.002]
[1735301409224,0.20601525,96977.0,96975.0,0.005]
[1735301409834,0.20601525,96977.0,96975.0,0.003]
[1735301410133,0.20601525,96977.0,96975.0,0.001]
[1735301410732,0.0376,96976.0,96975.0,0.001]
[1735301411325,0.051619,96975.0,96973.0,1.50052]
[1735301411533,0.051619,96975.0,96973.0,1.5]
[1735301412141,0.051628,96958.0,96953.0,0.18390824]
[1735301412839,0.051628,96958.0,96955.0,1.5]
[1735301414134,0.051628,96958.0,96955.0,1.502]
[1735301415438,0.052628,96958.0,96955.0,1.502]
[1735301415841,0.052628,96958.0,96955.0,1.505]
[1735301417737,0.052628,96958.0,96955.0,0.005]
[1735301418140,0.052628,96958.0,96957.0,1.5]
[1735301419435,0.051628,96958.0,96957.0,1.504]
[1735301419841,0.051628,96958.0,96957.0,1.506]
[1735301422845,0.051624,96966.0,96957.0,1.506]
[1735301423050,0.051624,96966.0,96958.0,0.01140301]
[1735301423349,0.1236186,96958.0,96957.0,0.058228]
[1735301423650,0.1236186,96958.0,96957.0,1.56903005]
[1735301424647,0.15461332,96971.0,96967.0,0.051623]
[1735301424942,0.18546525,96981.0,96980.0,0.051616]
[1735301425250,0.18546525,96981.0,96980.0,0.06301109]
[1735301425647,0.18546525,96981.0,96980.0,1.56301109]
[1735301426447,0.051606,96998.0,96989.0,0.051611]
[1735301427354,0.006,96981.0,96980.0,1.5]
[1735301427658,0.051618,96976.0,96975.0,0.24388791]
[1735301427847,0.051618,96976.0,96975.0,0.18478791]
[1735301428156,0.051618,96976.0,96974.0,0.18478791]
[1735301428842,0.055618,96976.0,96974.0,0.18478791]
[1735301429458,0.051623,96967.0,96965.0,0.0101815]
[1735301429758,0.051623,96967.0,96958.0,0.051628]
[1735301430446,0.051624,96966.0,96958.0,0.051628]
[1735301430647,0.004,96976.0,96958.0,0.051628]
[1735301430849,0.051624,96965.0,96959.0,0.01135748]
[1735301431151,0.051625,96964.0,96959.0,0.01135748]
[1735301431449,0.051625,96963.0,96959.0,0.01135748]
[1735301431649,0.051626,96962.0,96959.0,0.01135748]
[1735301432052,0.051626,96962.0,96959.0,0.004]
[1735301432356,0.001,96965.0,96959.0,0.004]
[1735301432357,0.051626,96961.0,96959.0,0.004]
[1735301432555,0.051627,96959.0,96958.0,0.01352926]
[1735301433952,0.051627,96959.0,96958.0,0.01052926]
[1735301434157,0.0382,96961.0,96954.0,0.00154704]
[1735301434354,0.051629,96956.0,96954.0,0.00154704]
[1735301435245,0.051629,96956.0,96954.0,0.01210207]
[1735301435448,0.01011382,96959.0,96954.0,0.004]
[1735301435657,0.051634,96946.0,96945.0,0.1836972]
[1735301437262,0.19156675,96955.0,96937.0,1.5]
[1735301437558,0.051638,96938.0,96937.0,1.5]
[1735301437958,0.051638,96938.0,96933.0,0.0105138]
[1735301438161,0.051638,96938.0,96921.0,0.00154761]
[1735301438354,0.051638,96938.0,96922.0,0.0114405]
[1735301438659,0.006,96946.0,96923.0,0.0114405]
[1735301438660,0.004,96946.0,96923.0,0.0114405]
[1735301438957,0.004,96946.0,96921.0,0.00154761]
[1735301438958,0.051641,96934.0,96924.0,0.0630855]
[1735301439156,0.051641,96934.0,96925.0,1.5114405]
[1735301439353,0.10203775,96947.0,96926.0,0.0114405]
[1735301439554,0.051641,96933.0,96924.0,0.051645]
[1735301439759,0.051641,96933.0,96925.0,1.51143545]
[1735301440056,0.10203775,96940.0,96925.0,1.5]
[1735301440257,0.051642,96932.0,96925.0,1.5]
[1735301440459,0.0388,96939.0,96925.0,1.5]
[1735301440662,0.051642,96931.0,96925.0,1.5]
[1735301441760,0.051643,96930.0,96925.0,1.5]
[1735301442061,0.051643,96930.0,96925.0,1.502]
[1735301442856,0.051643,96929.0,96925.0,1.502]
[1735301444161,0.052643,96929.0,96925.0,1.502]
[1735301444866,0.052643,96929.0,96925.0,1.553645]
[1735301445161,0.001,96929.0,96927.0,0.051644]
[1735301445661,0.001,96929.0,96928.0,1.5]
[1735301446666,0.051639,96937.0,96931.0,0.051641]
[1735301447059,0.051639,96937.0,96928.0,1.50056]
[1735301447257,0.051639,96937.0,96932.0,0.051641]
[1735301448966,0.051639,96937.0,96934.0,0.05164]
[1735301449464,0.052639,96937.0,96934.0,0.05164]
[1735301451667,0.052639,96937.0,96934.0,0.05364]
[1735301453567,0.052639,96937.0,96935.0,0.05164]
[1735301453769,0.001,96937.0,96935.0,0.05164]
[1735301454958,0.001,96937.0,96935.0,0.05364]
[1735301455870,0.051637,96941.0,96935.0,0.05364]
[1735301456573,0.051637,96941.0,96936.0,0.01152095]
[1735301456768,0.051638,96939.0,96937.0,0.01152095]
[1735301457070,0.051639,96936.0,96935.0,0.002]
[1735301457266,0.051639,96936.0,96935.0,0.01252867]
[1735301457769,0.051639,96936.0,96935.0,0.001]
[1735301458069,0.051639,96936.0,96928.0,1.552163]
[1735301458271,0.12654,96935.0,96929.0,0.0115326]
[1735301458462,0.12654,96935.0,96930.0,0.0115326]
[1735301458668,0.051641,96934.0,96931.0,0.0115326]
[1735301458968,0.051641,96934.0,96932.0,0.01152863]
[1735301459166,0.051641,96934.0,96933.0,0.01152863]
[1735301461275,0.051641,96934.0,96933.0,0.01154112]
[1735301463668,0.051637,96941.0,96937.0,0.051639]
[1735301463875,0.051637,96940.0,96938.0,0.01154112]
[1735301464074,0.051637,96940.0,96939.0,0.01154112]
[1735301464261,0.051637,96940.0,96939.0,0.01154597]
[1735301464880,0.052637,96940.0,96939.0,0.01154597]
[1735301465376,0.051637,96940.0,96939.0,0.01154597]
[1735301465565,0.052637,96940.0,96939.0,0.01154597]
[1735301465962,0.051637,96940.0,96939.0,0.01154597]
[1735301466162,0.052637,96940.0,96939.0,0.01154597]
[1735301466973,0.206731,96940.0,96939.0,0.01154597]
[1735301467676,0.205731,96940.0,96939.0,0.01154597]
[1735301467878,0.205731,96940.0,96939.0,0.01254597]
[1735301470382,0.205731,96940.0,96939.0,0.01254683]
[1735301470979,0.154094,96940.0,96939.0,0.06418483]
[1735301471683,0.154094,96940.0,96939.0,1.56418483]
[1735301472071,0.154094,96950.0,96939.0,1.51254683]
[1735301472282,0.154094,96950.0,96945.0,0.051634]
[1735301472486,0.154094,96950.0,96946.0,0.01153519]
[1735301472785,0.154094,96950.0,96947.0,0.01153519]
[1735301472973,0.154094,96950.0,96948.0,0.01153519]
[1735301473170,0.154094,96950.0,96949.0,0.01153519]
[1735301473574,0.154094,96950.0,96949.0,0.01146593]
[1735301473784,0.051632,96951.0,96949.0,0.01146593]
[1735301473985,0.051632,96951.0,96950.0,0.01146105]
[1735301474181,0.051632,96951.0,96946.0,0.2360185]
[1735301474182,0.154094,96955.0,96946.0,0.2390185]
[1735301474393,0.051632,96949.0,96947.0,0.01145919]
[1735301474574,0.001,96950.0,96948.0,0.01145919]
[1735301474885,0.001,96950.0,96949.0,0.06309119]
[1735301475181,0.001,96950.0,96949.0,0.06509119]
[1735301475582,0.001,96950.0,96949.0,1.56509119]
[1735301477581,0.001,96950.0,96949.0,1.56309119]
[1735301478286,0.001,96951.0,96949.0,1.59949119]
[1735301478480,0.001,96951.0,96950.0,0.01145919]
[1735301478786,0.051629,96955.0,96949.0,1.6000397]
[1735301478980,0.051629,96955.0,96951.0,0.051631]
[1735301481684,0.051629,96955.0,96952.0,0.05163]
[1735301482586,0.00154763,96958.0,96956.0,0.051628]
[1735301483085,0.00154763,96958.0,96957.0,1.5]
[1735301484989,0.00154763,96958.0,96957.0,1.501]
[1735301485689,0.00154763,96958.0,96957.0,1.5]
[1735301487288,0.00154763,96958.0,96957.0,1.501]
[1735301488589,0.051628,96958.0,96957.0,1.501]
[1735301488789,0.051628,96958.0,96957.0,0.001]
[1735301488994,0.051633,96947.0,96946.0,0.1843845]
[1735301489398,0.10203775,96956.0,96931.0,1.6849045]
[1735301489696,0.051639,96938.0,96932.0,0.01144297]
[1735301489886,0.0389,96937.0,96933.0,0.01144297]
[1735301490196,0.0389,96937.0,96931.0,1.69532165]